bitfinex/quotes_ETHUSD_20251024
["timestamp","ask_amount","ask_price","bid_price","bid_amount"]
[1761294440323,2.66720508,3937.0,3936.9,0.5607]
[1761294442626,0.1272,3937.0,3936.9,0.5607]
[1761294443037,2.66720508,3937.0,3936.9,0.5607]
[1761294445447,2.66720508,3937.0,3936.9,0.171]
[1761294446043,2.54006959,3936.9,3936.8,3.19900001]
[1761294446908,2.54006959,3936.9,3936.8,1e-08]
[1761294447081,3.5444445,3936.9,3936.8,1e-08]
[1761294449066,3.08133808,3936.9,3936.8,1e-08]
[1761294451187,3.75643193,3936.9,3936.8,1e-08]
[1761294451493,3.51363808,3936.9,3936.8,1e-08]
[1761294451694,5.06883808,3936.9,3936.8,1e-08]
[1761294452064,4.63653808,3936.9,3936.8,1e-08]
[1761294452593,5.50010567,3936.9,3936.8,1e-08]
[1761294454969,6.17770143,3936.9,3936.8,1e-08]
[1761294455177,5.50010567,3936.9,3936.8,1e-08]
[1761294456196,5.49930567,3936.9,3936.8,1e-08]
[1761294460709,4.63573808,3936.9,3936.8,0.38970001]
[1761294460912,4.63573808,3936.9,3936.8,1e-08]
[1761294461682,4.63672278,3936.9,3936.8,1e-08]
[1761294465003,4.63672278,3936.9,3936.8,0.38970001]
[1761294468639,2.22465319,3936.9,3936.8,0.38970001]
[1761294468806,4.76472278,3936.9,3936.8,0.38970001]
[1761294469906,4.76472278,3936.9,3936.8,1e-08]
[1761294470401,5.56317618,3936.9,3936.8,1e-08]
[1761294470846,5.99547618,3936.9,3936.8,1e-08]
[1761294471014,6.67329267,3936.9,3936.8,1e-08]
[1761294471222,6.67432924,3936.9,3936.8,1e-08]
[1761294471420,5.99647618,3936.9,3936.8,1e-08]
[1761294474369,5.56417618,3936.9,3936.8,1e-08]
[1761294477455,4.63852278,3936.9,3936.8,1e-08]
[1761294480176,4.63772278,3936.9,3936.8,1e-08]
[1761294480841,5.31620515,3936.9,3936.8,0.38970001]
[1761294481041,4.63772278,3936.9,3936.8,0.38970001]
[1761294481938,5.31620515,3936.9,3936.8,0.38970001]
[1761294482351,5.31620515,3936.9,3936.8,1e-08]
[1761294482550,5.91325485,3936.9,3936.8,1e-08]
[1761294482770,5.23477248,3936.9,3936.8,1e-08]
[1761294483071,5.68247248,3936.9,3936.8,1e-08]
[1761294483770,5.23477248,3936.9,3936.8,1e-08]
[1761294484740,5.68247248,3936.9,3936.8,1e-08]
[1761294484937,5.23477248,3936.9,3936.8,1e-08]
[1761294486574,5.68247248,3936.9,3936.8,1e-08]
[1761294487276,4.76492278,3936.9,3936.8,1e-08]
[1761294487477,5.44352716,3936.9,3936.8,0.38970001]
[1761294487677,5.44352716,3936.9,3936.8,1e-08]
[1761294490995,5.89122716,3936.9,3936.8,1e-08]
[1761294491154,5.21262278,3936.9,3936.8,1e-08]
[1761294491355,6.07794806,3936.9,3936.8,1e-08]
[1761294492082,5.63024806,3936.9,3936.8,1e-08]
[1761294493766,4.76492278,3936.9,3936.8,1e-08]
[1761294493963,5.44334345,3936.9,3936.8,1e-08]
[1761294495179,4.76492278,3936.9,3936.8,1e-08]
[1761294495383,3.21052278,3936.9,3936.8,1e-08]
[1761294499535,0.1282,3936.9,3936.8,7.41727133]
[1761294499702,0.1282,3936.9,3936.8,4.4441231]
[1761294499868,0.1282,3936.9,3936.8,0.3505431]
[1761294500073,0.1282,3936.9,3936.8,3.5485431]
[1761294500496,0.1282,3936.9,3936.8,3.9382431]
[1761294500899,0.1282,3936.9,3936.8,6.98525721]
[1761294501308,0.1282,3936.9,3936.8,4.4451231]
[1761294501990,0.1282,3936.9,3936.8,6.98525721]
[1761294502187,0.1282,3936.9,3936.8,4.4471231]
[1761294502387,0.1282,3936.9,3936.8,6.98725721]
[1761294503016,0.1282,3936.9,3936.8,3.78725721]
[1761294503216,0.1282,3936.9,3936.8,6.98725721]
[1761294504141,0.1274,3936.9,3936.8,6.98725721]
[1761294504498,0.1274,3936.9,3936.8,8.54245721]
[1761294507595,0.0002,3936.9,3936.8,8.54245721]
[1761294509195,0.0002,3936.9,3936.8,8.31560544]
[1761294509527,0.1274,3936.9,3936.8,11.51360544]
[1761294511927,0.1274,3936.9,3936.8,8.31560544]
[1761294512143,0.1274,3936.9,3936.8,11.51360544]
[1761294515258,0.1274,3936.9,3936.8,8.54045721]
[1761294515459,0.1274,3936.9,3936.8,11.51360544]
[1761294517426,0.0002,3936.9,3936.8,14.48675367]
[1761294517746,0.0002,3936.9,3936.8,11.51360544]
[1761294520433,0.0002,3936.9,3936.8,11.64180544]
[1761294522170,0.0002,3936.9,3936.8,5.08095721]
[1761294522474,0.0002,3936.9,3936.8,11.51260544]
[1761294522853,0.0002,3936.9,3936.8,14.61295367]
[1761294523034,0.0002,3936.9,3936.8,11.76800544]
[1761294524061,0.0002,3936.9,3936.8,11.76900544]
[1761294525255,0.0002,3936.9,3936.8,8.57100544]
[1761294525457,0.0002,3936.9,3936.8,11.76900544]
[1761294526260,0.0002,3936.9,3936.8,14.74215367]
[1761294526456,0.0002,3936.9,3936.8,11.76900544]
[1761294528168,0.0004,3937.1,3937.0,3.04688508]
[1761294528375,0.0004,3937.1,3937.0,3.97178216]
[1761294528540,0.0004,3937.1,3937.0,6.04388216]
[1761294528740,0.0004,3937.1,3937.0,6.12008579]
[1761294530577,0.0004,3937.1,3937.0,8.69858211]
[1761294532151,0.0004,3937.1,3937.0,9.08828211]
[1761294534168,0.0004,3937.1,3937.0,9.21548211]
[1761294534471,0.0004,3937.1,3937.0,9.34368211]
[1761294534650,0.0004,3937.1,3937.0,12.31683034]
[1761294534850,0.001,3937.2,3937.1,4.60202056]
[1761294535046,0.001,3937.2,3937.1,8.48641188]
[1761294535447,0.001,3937.2,3937.1,8.58800653]
[1761294538786,1e-08,3937.5,3937.4,4.60182704]
[1761294538989,1e-08,3937.5,3937.4,10.79737274]
[1761294539151,1e-08,3937.5,3937.4,11.28887527]
[1761294539350,1e-08,3937.5,3937.4,12.1883723]
[1761294539665,1e-08,3937.5,3937.4,5.73010324]
[1761294539873,1e-08,3937.5,3937.4,8.92710324]
[1761294540066,1e-08,3937.5,3937.4,9.31680324]
[1761294541972,1e-08,3937.5,3937.4,8.92710324]
[1761294542150,1e-08,3937.5,3937.4,5.73010324]
[1761294542350,1e-08,3937.5,3937.4,8.4744723]
[1761294542570,1e-08,3937.5,3937.4,11.6714723]
[1761294542979,1e-08,3937.5,3937.4,11.6724723]
[1761294543366,1e-08,3937.5,3937.4,8.69932407]
[1761294543765,1e-08,3937.5,3937.4,5.50132407]
[1761294543951,1e-08,3937.5,3937.4,8.69832407]
[1761294544151,1e-08,3937.5,3937.4,5.50132407]
[1761294544356,1e-08,3937.5,3937.4,8.69832407]
[1761294545394,1e-08,3937.5,3937.4,5.50132407]
[1761294545687,1e-08,3937.5,3937.4,11.6714723]
[1761294546587,0.45140001,3937.5,3937.4,11.6714723]
[1761294546795,0.45140001,3937.5,3937.4,8.69832407]
[1761294546957,0.45140001,3937.5,3937.4,11.6714723]
[1761294547563,0.45140001,3937.5,3937.4,8.4744723]
[1761294548090,0.57860001,3937.5,3937.4,11.6714723]
[1761294548693,0.57860001,3937.5,3937.4,5.50132407]
[1761294548895,0.57860001,3937.5,3937.4,7.79882704]
[1761294549281,0.57860001,3937.5,3937.4,10.77197527]
[1761294549683,0.57860001,3937.5,3937.4,4.60182704]
[1761294549889,0.57860001,3937.5,3937.4,7.79882704]
[1761294550204,0.12720001,3937.5,3937.4,7.79882704]
[1761294550585,0.12720001,3937.5,3937.4,9.04886716]
[1761294550784,0.12720001,3937.5,3937.4,7.79882704]
[1761294551216,0.12720001,3937.5,3937.4,7.82882704]
[1761294552324,0.12640001,3937.5,3937.4,7.82882704]
[1761294553105,0.57780001,3937.5,3937.4,6.27362704]
[1761294553701,0.12640001,3937.5,3937.4,6.27362704]
[1761294554503,0.001,3937.6,3937.5,3.04656253]
[1761294554684,0.001,3937.6,3937.5,3.07195935]
[1761294555821,0.001,3937.6,3937.5,3.04656253]
[1761294557790,0.001,3937.6,3937.5,3.07195935]
[1761294558423,0.001,3937.6,3937.5,3.46165935]
[1761294558998,0.001,3937.6,3937.5,3.07195935]
[1761294559201,0.001,3937.6,3937.5,3.04656253]
[1761294563234,0.001,3937.6,3937.5,4.60176253]
[1761294563816,0.4524,3937.6,3937.5,4.60176253]
[1761294564381,0.4524,3937.6,3937.5,7.79676253]
[1761294565111,0.4524,3937.6,3937.5,6.24156253]
[1761294565317,0.4524,3937.6,3937.5,3.04656253]
[1761294565513,0.4524,3937.6,3937.5,6.24156253]
[1761294565910,0.4524,3937.6,3937.5,3.04656253]
[1761294566109,0.4524,3937.6,3937.5,6.24156253]
[1761294566955,0.9058,3937.6,3937.5,6.24156253]
[1761294567255,0.9058,3937.6,3937.5,3.04656253]
[1761294567658,0.9058,3937.6,3937.5,6.24156253]
[1761294568566,0.9058,3937.6,3937.5,3.70188]
[1761294569546,1.26324277,3937.6,3937.4,0.032]
[1761294569779,3.13128253,3937.5,3937.4,0.032]
[1761294569964,3.13128253,3937.5,3937.4,0.132]
[1761294570336,3.23291306,3937.5,3937.4,0.132]
[1761294571264,3.23291306,3937.5,3937.4,0.032]
[1761294571468,4.38830469,3937.5,3937.4,0.032]
[1761294573246,3.84610407,3937.5,3937.4,0.032]
[1761294574058,4.38793556,3937.5,3937.4,0.032]
[1761294574252,3.84610407,3937.5,3937.4,0.032]
[1761294576372,3.84530407,3937.5,3937.4,0.032]
[1761294576938,5.81480014,3937.5,3937.4,0.032]
[1761294577566,9.00980014,3937.5,3937.4,0.032]
[1761294581964,5.81480014,3937.5,3937.4,0.032]
[1761294585186,9.37938974,3937.5,3937.4,0.032]
[1761294587101,9.50658974,3937.5,3937.4,0.032]
[1761294591268,9.50758974,3937.5,3937.4,0.032]
[1761294591970,4.09514056,3937.1,3937.0,0.002]
[1761294592214,8.32842623,3937.1,3937.0,0.002]
[1761294592407,8.79282623,3937.1,3937.0,0.002]
[1761294592584,8.89449086,3937.1,3937.0,0.002]
[1761294596191,9.57291153,3937.1,3937.0,0.002]
[1761294596393,10.32648695,3937.1,3937.0,0.002]
[1761294600204,10.32568695,3937.1,3937.0,0.002]
[1761294600629,11.22437414,3937.1,3937.0,0.002]
[1761294601005,11.67569827,3937.1,3937.0,0.002]
[1761294601417,10.32568695,3937.1,3937.0,0.002]
[1761294603036,4.3218277,3936.5,3936.4,1e-08]
[1761294603239,8.42791337,3936.5,3936.4,1e-08]
[1761294603459,2.54045677,3936.3,3936.2,0.002]
[1761294603620,4.76435284,3936.3,3936.2,0.002]
[1761294603820,5.21655284,3936.3,3936.2,0.002]
[1761294604117,6.38149983,3936.3,3936.2,0.002]
[1761294604325,6.77119983,3936.3,3936.2,0.002]
[1761294605654,6.77119983,3936.3,3934.0,0.50688]
[1761294605655,2.54105763,3935.4,3934.0,0.50688]
[1761294605947,2.54147442,3934.8,3934.2,0.50688]
[1761294606144,2.54137919,3934.9,3934.3,0.73355122]
[1761294606446,2.54137919,3934.9,3934.4,0.3897]
[1761294606645,0.1272,3934.5,3934.4,0.3897]
[1761294607143,0.1272,3934.5,3934.3,0.34385122]
[1761294607345,0.1272,3934.5,3934.4,0.3897]
[1761294607552,0.1272,3934.5,3933.7,2.71312967]
[1761294607553,0.1272,3934.5,3933.7,0.171]
[1761294607846,0.1272,3934.5,3934.0,0.3897]
[1761294608145,2.54143181,3934.8,3934.0,0.3897]
[1761294608146,0.1272,3934.1,3934.0,0.89658]
[1761294608729,0.1272,3934.1,3934.0,0.3897]
[1761294609059,0.1272,3934.1,3933.7,0.171]
[1761294609261,1.5552,3934.5,3933.7,0.171]
[1761294609463,2.54204468,3933.9,3933.7,0.171]
[1761294610036,2.54196483,3934.0,3933.7,0.171]
[1761294611461,2.54197627,3934.0,3933.8,0.3897]
[1761294611662,2.54200666,3933.9,3933.8,0.3897]
[1761294611832,0.55719896,3934.4,3932.9,0.50688]
[1761294612032,2.54206211,3933.9,3933.2,0.50688]
[1761294612284,2.54207134,3933.8,3933.2,0.50688]
[1761294612463,2.54207134,3933.8,3933.3,0.3897]
[1761294613157,2.97810422,3933.7,3932.7,2.71316407]
[1761294613366,2.54215211,3933.7,3933.0,0.50688]
[1761294613734,2.54207127,3933.8,3933.1,0.3897]
[1761294614132,2.5421407,3933.7,3933.1,0.3897]
[1761294614351,2.54220508,3933.6,3933.1,0.3897]
[1761294614556,2.54214208,3933.7,3933.1,0.3897]
[1761294614781,2.54209285,3933.8,3933.1,2.93217699]
[1761294614946,2.54209285,3933.8,3933.1,0.3897]
[1761294615134,2.54209285,3933.8,3933.1,2.93220704]
[1761294615468,2.54213713,3933.7,3933.0,0.50688]
[1761294615667,2.54213713,3933.7,3933.0,0.89658]
[1761294615864,2.54202068,3933.9,3933.0,3.43913195]
[1761294616057,2.54214119,3933.7,3933.1,0.3897]
[1761294616365,2.54208626,3933.8,3933.1,3.43907782]
[1761294616566,2.54213907,3933.7,3933.1,0.89658]
[1761294616738,2.54214937,3933.7,3933.2,0.3897]
[1761294616932,2.54201168,3933.9,3933.1,0.50688]
[1761294616933,2.54221383,3933.6,3933.1,0.50688]
[1761294617139,2.54221383,3933.6,3933.2,0.3897]
[1761294617339,2.54216028,3933.7,3933.2,0.3897]
[1761294618150,2.54216028,3933.7,3933.1,0.50688]
[1761294618151,2.97810422,3933.8,3932.7,0.1704]
[1761294618461,1.5552,3934.0,3932.7,0.1704]
[1761294618462,2.54232979,3933.4,3932.7,3.10288058]
[1761294618661,2.54232979,3933.4,3932.8,0.3897]
[1761294618969,2.54239965,3933.3,3932.8,0.3897]
[1761294619167,0.1272,3932.9,3932.8,0.3897]
[1761294620469,0.1272,3932.9,3932.7,0.1704]
[1761294620648,0.1272,3932.9,3932.7,0.5601]
[1761294620854,0.1272,3932.9,3932.8,0.3897]
[1761294622644,0.1272,3932.9,3932.7,0.1704]
[1761294623271,0.1272,3932.9,3932.7,0.5601]
[1761294624175,0.1264,3932.9,3932.7,0.5601]
[1761294624340,0.1264,3932.9,3932.7,0.1704]
[1761294625680,4.49632919,3937.3,3932.8,0.3897]
[1761294625681,2.97810422,3933.4,3932.8,0.3897]
[1761294625978,2.54260599,3933.0,3932.7,0.1704]
[1761294626457,2.54265419,3932.9,3932.7,0.1704]
[1761294626657,2.54255671,3933.1,3932.7,0.1704]
[1761294626953,2.54258937,3933.0,3932.7,0.1704]
[1761294627140,2.54265564,3932.9,3932.6,0.002]
[1761294627355,2.54265126,3933.0,3932.6,0.002]
[1761294628377,2.97810422,3933.2,3932.6,0.002]
[1761294628550,3.00290216,3933.0,3932.6,0.002]
[1761294628750,2.54260216,3933.0,3932.6,0.002]
[1761294628945,0.45333042,3933.3,3932.6,0.3917]
[1761294629177,2.54254204,3933.1,3932.6,0.3917]
[1761294629475,3.44669544,3933.9,3932.6,0.3917]
[1761294629476,1.9906,3933.7,3932.6,0.3917]
[1761294629676,2.5424749,3933.2,3932.6,0.3917]
[1761294629973,2.54247303,3933.2,3932.6,0.3917]
[1761294630141,2.5425444,3933.1,3932.6,0.3917]
[1761294630980,0.4354,3933.5,3932.6,0.3917]
[1761294631176,1.75426,3933.4,3932.6,0.002]
[1761294631378,0.19906,3933.4,3932.6,0.3917]
[1761294631577,0.19906,3933.4,3932.8,2.54269978]
[1761294631578,0.54362483,3933.4,3932.8,2.54269978]
[1761294631778,1.5552,3933.5,3932.8,2.54269978]
[1761294631976,1.5552,3933.5,3932.9,0.3897]
[1761294631977,1.5552,3933.4,3932.9,0.3897]
[1761294632685,4.09750848,3933.5,3932.9,0.3897]
[1761294632883,0.54386352,3933.4,3932.9,0.3897]
[1761294633046,2.5424408,3933.3,3932.9,0.3897]
[1761294633246,2.54226515,3933.5,3932.9,0.3897]
[1761294633451,0.54403891,3933.4,3932.9,0.3897]
[1761294633651,3.08638189,3933.4,3932.9,0.3897]
[1761294633851,2.54234298,3933.4,3932.9,0.3897]
[1761294634277,0.54419906,3933.3,3932.7,2.5427763]
[1761294634484,0.54419906,3933.3,3932.9,2.93232165]
[1761294634686,0.5441958,3933.6,3933.2,0.1704]
[1761294634894,0.67834617,3934.3,3933.3,3.51040816]
[1761294635095,0.2263,3935.6,3934.1,2.97810422]
[1761294635096,0.54425799,3934.5,3934.1,2.97810422]
[1761294635303,2.54136064,3934.9,3934.1,5.51997045]
[1761294635570,0.90446156,3935.3,3934.1,5.51997045]
[1761294635571,0.67834617,3935.4,3934.8,0.50688]
[1761294635772,0.54455007,3935.6,3935.3,0.0484]
[1761294636138,3.08547354,3935.6,3934.8,3.43798622]
[1761294636276,2.09975007,3935.5,3934.4,2.97810422]
[1761294636474,0.54455007,3935.4,3934.5,0.89658]
[1761294636707,2.54111339,3935.3,3934.7,0.50688]
[1761294637007,2.54128038,3935.1,3934.3,3.04859756]
[1761294637206,0.4354,3935.2,3934.3,0.50688]
[1761294637392,2.54142168,3934.9,3934.3,0.50688]
[1761294637973,2.97657267,3935.2,3934.3,0.50688]
[1761294638175,0.54450389,3935.1,3934.2,0.171]
[1761294638404,2.54136064,3934.9,3934.2,0.171]
[1761294638579,2.54141359,3934.9,3934.2,0.171]
[1761294639189,2.54143295,3934.8,3934.2,0.171]
[1761294639609,2.5415247,3934.7,3934.2,0.171]
[1761294639813,0.80089188,3935.2,3934.3,2.93144544]
[1761294639814,2.54128098,3935.1,3934.3,2.93144544]
[1761294640011,3.08605392,3935.0,3934.3,2.93144544]
[1761294640211,2.54130065,3935.0,3934.3,0.3897]
[1761294640385,2.54136964,3934.9,3934.3,0.3897]
[1761294640780,2.54124055,3935.1,3934.3,0.3897]
[1761294641092,2.54131378,3935.0,3934.3,0.3897]
[1761294641492,2.54137298,3934.9,3934.3,0.3897]
[1761294641700,0.33421324,3935.1,3934.3,2.93144801]
[1761294641701,2.54131815,3935.0,3934.3,2.93144801]
[1761294641916,2.54131815,3935.0,3934.2,2.71279691]
[1761294642118,2.5413607,3934.9,3934.4,0.3897]
[1761294642317,2.5413607,3934.9,3934.2,0.5607]
[1761294642521,2.54146914,3934.8,3934.2,0.5607]
[1761294643094,2.54161891,3934.6,3934.2,0.171]
[1761294643288,2.54157934,3934.6,3934.2,0.171]
[1761294643482,0.67834617,3935.4,3934.2,0.171]
[1761294643710,2.54133479,3935.0,3934.3,0.41511748]
[1761294643907,0.4354,3935.4,3934.3,0.41511748]
[1761294643908,4.09630594,3935.3,3934.3,2.93142583]
[1761294644092,2.54127647,3935.1,3934.3,2.93142583]
[1761294644298,2.54127647,3935.1,3934.4,0.3897]
[1761294644591,0.001,3934.8,3934.4,0.3897]
[1761294644785,0.001,3934.8,3934.4,2.93137468]
[1761294644987,0.001,3934.8,3934.4,0.3897]
[1761294648220,0.0002,3934.8,3934.4,0.3897]
[1761294648397,0.0002,3934.8,3934.3,2.54174478]
[1761294648722,0.0002,3934.8,3934.3,0.82328286]
[1761294648903,0.0002,3934.8,3934.2,5.69089611]
[1761294649422,0.0002,3934.8,3934.2,5.69089519]
[1761294649623,2.54164123,3934.8,3934.2,3.14910422]
[1761294649823,2.54164123,3934.8,3934.2,0.171]
[1761294650202,2.54157635,3934.6,3934.2,0.171]
[1761294650401,2.54157635,3934.6,3933.9,2.97810422]
[1761294650402,2.54166396,3934.5,3933.8,0.50688]
[1761294650601,2.54157906,3934.6,3933.9,2.54194887]
[1761294650813,2.54157906,3934.6,3933.9,6.76665989]
[1761294651133,2.54157906,3934.6,3934.0,0.3897]
[1761294651294,2.54151858,3934.7,3934.0,2.93161503]
[1761294651495,2.54151858,3934.7,3934.1,0.171]
[1761294651695,2.54157138,3934.6,3934.1,0.171]
[1761294652194,2.54151171,3934.7,3934.1,0.171]
[1761294653324,0.0002,3934.8,3934.6,2.97810422]
[1761294653823,0.0002,3934.8,3934.3,2.97810422]
[1761294654321,0.0002,3934.8,3934.4,2.54167243]
[1761294654526,0.0002,3934.8,3934.4,2.93137243]
[1761294654721,0.0002,3934.8,3934.4,0.3897]
[1761294655023,0.0002,3934.8,3934.3,2.54174148]
[1761294655194,0.0002,3934.8,3934.3,3.39864828]
[1761294655396,0.0002,3934.8,3934.3,0.8569068]
[1761294655627,0.0002,3934.8,3934.2,3.04863989]
[1761294656119,0.0002,3934.8,3934.3,2.5417451]
[1761294656321,0.0002,3934.8,3934.3,2.9314451]
[1761294656525,0.0002,3934.8,3934.4,5.90946961]
[1761294656824,0.0002,3934.8,3934.5,0.3897]
[1761294657729,0.0002,3934.8,3934.4,5.51976961]
[1761294657917,0.0002,3934.8,3934.4,5.90946961]
[1761294658119,0.0002,3934.8,3934.5,0.3897]
[1761294658314,0.0002,3934.8,3934.6,3.206]
[1761294659430,0.0002,3934.8,3934.3,2.54174802]
[1761294659626,0.0002,3934.8,3934.2,0.3897]
[1761294659796,0.0002,3934.8,3934.4,3.205]
[1761294660505,0.0002,3934.8,3934.4,6.13637263]
[1761294660709,0.0002,3934.8,3934.5,4.07281803]
[1761294661026,0.0002,3934.8,3934.5,7.00412177]
[1761294661232,0.0002,3934.8,3934.5,4.46251803]
[1761294661637,2.99247129,3934.8,3934.1,0.171]
[1761294661853,2.54172537,3934.4,3934.1,0.171]
[1761294662053,0.4508,3934.7,3934.2,1.879]
[1761294662257,2.54163569,3934.8,3934.2,1.879]
[1761294662561,2.54163569,3934.8,3933.4,3.04917828]
[1761294662562,0.99659382,3934.7,3933.2,3.14850422]
[1761294662837,2.54226008,3933.6,3933.3,3.207]
[1761294663004,2.54181282,3934.2,3933.3,3.207]
[1761294663201,2.54231655,3933.5,3932.9,0.002]
[1761294663439,2.54237349,3933.4,3933.0,3.208]
[1761294663820,2.99306382,3933.6,3932.9,0.002]
[1761294664137,2.54237801,3933.4,3933.0,3.208]
[1761294664508,2.5423946,3933.3,3933.0,3.208]
[1761294664709,2.99314516,3933.4,3933.0,3.208]
[1761294664905,0.4508,3933.4,3932.9,0.002]
[1761294665236,4.071955,3934.1,3932.9,0.002]
[1761294665237,1.5552,3933.9,3933.0,9.11837433]
[1761294665537,2.54221612,3933.6,3933.0,6.57580422]
[1761294666316,1.30252632,3934.1,3933.0,7.50488813]
[1761294666644,0.54503604,3934.0,3933.3,2.97810422]
[1761294666830,0.4508,3934.4,3933.5,2.54220994]
[1761294667010,0.54507422,3934.4,3933.6,6.21152622]
[1761294667209,3.08677131,3934.4,3933.7,5.75008681]
[1761294667505,0.76298699,3934.5,3933.7,3.208]
[1761294667506,2.54175417,3934.3,3933.7,3.208]
[1761294667907,2.54170067,3934.4,3933.7,5.75011592]
[1761294668540,0.4508,3934.7,3933.7,5.75011592]
[1761294668541,2.54162951,3934.5,3933.7,3.52895621]
[1761294668755,1.5552,3934.6,3933.9,2.97810422]
[1761294668958,0.54501843,3934.5,3933.9,5.52006978]
[1761294669162,2.54170715,3934.4,3933.7,6.07106995]
[1761294669348,0.4508,3934.5,3933.2,2.97810422]
[1761294669659,2.54174982,3934.3,3933.3,3.04921414]
[1761294669827,2.54190845,3934.1,3933.4,2.54232314]
[1761294670221,2.99261573,3934.2,3933.5,2.54225993]
[1761294670435,0.4508,3934.2,3933.4,2.97810422]
[1761294670642,2.54191953,3934.1,3933.6,3.208]
[1761294670843,2.54194415,3934.0,3933.6,3.208]
[1761294671258,2.99274415,3934.0,3933.6,3.208]
[1761294671652,2.54153527,3934.7,3933.6,3.208]
[1761294671653,2.54176268,3934.3,3933.7,2.97810422]
[1761294672147,2.54090408,3934.4,3933.7,5.52022186]
[1761294672762,2.54183309,3934.2,3933.7,2.97810422]
[1761294673666,2.54177086,3934.3,3933.7,2.97810422]
[1761294674171,0.2319,3933.8,3932.9,0.002]
[1761294674463,2.77397607,3933.8,3933.0,3.208]
[1761294674633,2.54225766,3933.6,3933.1,3.21]
[1761294674961,2.54214987,3933.7,3932.9,0.002]
[1761294675171,2.54220052,3933.6,3932.9,0.002]
[1761294675336,2.99300052,3933.6,3933.0,3.209]
[1761294675843,2.54227211,3933.5,3933.0,3.209]
[1761294676043,2.54235225,3933.4,3932.9,0.002]
[1761294676267,0.4508,3933.6,3933.0,3.209]
[1761294676479,2.5422421,3933.6,3933.0,3.209]
[1761294676689,2.9930421,3933.6,3933.0,3.209]
[1761294677040,2.54226833,3933.5,3933.1,3.21]
[1761294677480,2.99301531,3933.6,3932.9,2.54464808]
[1761294677651,2.99301531,3933.6,3933.2,3.209]
[1761294677845,0.4508,3933.6,3933.2,3.209]
[1761294678162,4.02422894,3933.5,3932.9,0.002]
[1761294678368,2.54258835,3933.0,3932.9,0.002]
[1761294678661,4.64271179,3933.0,3932.9,0.002]
[1761294678874,5.09351179,3933.0,3932.9,0.002]
[1761294679093,5.92528019,3933.0,3932.9,0.002]
[1761294679466,5.92528019,3933.0,3932.6,0.002]
[1761294679467,2.54278231,3932.7,3932.6,0.002]
[1761294679790,4.64290575,3932.7,3932.6,0.002]
[1761294680084,5.09370575,3932.7,3932.6,0.002]
[1761294680650,4.09798231,3932.7,3932.6,0.002]
[1761294680853,5.31921655,3932.7,3932.6,0.002]
[1761294681091,9.43642617,3932.7,3932.6,0.002]
[1761294684791,10.19978397,3932.7,3932.6,0.002]
[1761294686600,10.87946271,3932.7,3932.6,0.002]
[1761294687263,4.09824096,3932.3,3932.2,1e-08]
[1761294687466,4.64202164,3932.3,3932.2,1e-08]
[1761294687775,4.54904096,3932.3,3932.2,1e-08]
[1761294688893,5.31243178,3932.3,3932.2,1e-08]
[1761294689088,4.54904096,3932.3,3932.2,1e-08]
[1761294689402,5.42708108,3932.3,3932.2,1e-08]
[1761294690676,6.1904719,3932.3,3932.2,1e-08]
[1761294690883,10.30492041,3932.3,3932.2,1e-08]
[1761294693392,6.28069147,3932.3,3932.2,1e-08]
[1761294693592,5.95210065,3932.3,3932.2,1e-08]
[1761294695199,4.97628108,3932.3,3932.2,1e-08]
[1761294695590,2.54304096,3932.3,3932.2,1e-08]
[1761294695791,1.5552,3932.3,3932.2,1e-08]
[1761294696099,3.237,3932.4,3932.2,1e-08]
[1761294696100,2.5422174,3932.4,3932.2,1e-08]
[1761294696302,2.54291618,3932.5,3932.2,1e-08]
[1761294696605,1.5552,3932.6,3932.2,1e-08]
[1761294696606,1.5552,3932.3,3932.2,1e-08]
[1761294696816,4.09824096,3932.3,3932.2,1e-08]
[1761294697016,1.5552,3932.3,3932.2,1e-08]
[1761294697180,3.6718,3932.9,3932.2,1e-08]
[1761294697181,3.236,3933.1,3932.2,0.39170001]
[1761294697376,1.5552,3932.5,3932.2,0.39170001]
[1761294697874,2.54291398,3932.5,3932.2,0.39170001]
[1761294698608,2.54304096,3932.3,3932.2,1e-08]
[1761294699018,2.97784096,3932.3,3932.2,1e-08]
[1761294699421,2.54304096,3932.3,3932.2,1e-08]
[1761294700288,0.76331507,3932.7,3932.2,1e-08]
[1761294700487,2.54285505,3932.6,3932.3,0.3917]
[1761294700710,1.5552,3932.5,3932.3,0.3917]
[1761294700911,1.5552,3932.5,3932.2,1e-08]
[1761294701315,0.001,3932.4,3932.2,1e-08]
[1761294701720,1.5562,3932.4,3932.2,1e-08]
[1761294701919,0.001,3932.4,3932.2,1e-08]
[1761294702121,0.001,3932.4,3932.2,0.39170001]
[1761294702321,0.001,3932.4,3932.3,9.8603499]
[1761294702821,0.001,3932.4,3932.3,10.2520499]
[1761294703596,0.001,3932.4,3932.3,11.8072499]
[1761294703820,0.001,3932.4,3932.3,4.99682096]
[1761294704122,0.001,3932.4,3932.3,9.02371243]
[1761294710320,0.001,3932.4,3932.3,9.02171243]
[1761294711914,0.001,3932.4,3932.3,5.78571243]
[1761294712120,0.001,3932.4,3932.3,9.02171243]
[1761294712540,0.001,3932.4,3932.3,5.78571243]
[1761294712748,0.001,3932.4,3932.3,7.46551243]
[1761294713303,0.001,3932.4,3932.3,4.23051243]
[1761294713529,0.001,3932.4,3932.3,7.46551243]
[1761294715434,0.001,3932.4,3932.3,4.23051243]
[1761294715635,0.001,3932.4,3932.3,7.46551243]
[1761294717864,0.001,3932.4,3932.3,9.02071243]
[1761294718538,0.001,3932.4,3932.3,9.01971243]
[1761294719562,0.4696,3934.3,3933.2,0.50688]
[1761294719764,0.4696,3934.3,3933.6,0.50688]
[1761294719964,3.01139549,3934.3,3933.7,3.234]
[1761294720149,0.32269955,3934.2,3933.7,2.54209215]
[1761294720350,0.4696,3934.1,3933.8,3.233]
[1761294720863,0.2215,3933.9,3933.8,3.233]
[1761294721253,0.6911,3933.9,3933.8,3.233]
[1761294721661,3.2331671,3933.9,3932.9,0.50688]
[1761294721840,0.4696,3933.8,3933.1,2.54247937]
[1761294722163,3.01167215,3933.8,3933.1,0.50688]